fUSD/lending_fUSD_20241001
["ID","MTS","AMOUNT","RATE_DAILY","PERIOD"]
[339618910,1727752240095,-500.0,0.00010959,2]
[339618911,1727752240104,-171.74,0.00010959,2]
[339618912,1727752240113,-150.0,0.00010959,2]
[339618913,1727752240123,-250.0,0.00010959,2]
[339618914,1727752240131,-500.0,0.00010973,2]
[339618915,1727752240141,-500.0,0.00010973,2]
[339618916,1727752240150,-501.94129223,0.00010973,2]
[339618917,1727752240159,-151.12,0.0001099,2]
[339618918,1727752240168,-151.12,0.0001099,2]
[339618919,1727752240178,-26747.30052928,0.00011,2]
[339618920,1727752240189,-1594.43651587,0.00011,2]
[339618921,1727752242700,-188.89782537,0.000109,2]
[339618922,1727752242710,-12131.60925547,0.00011,2]
[339618923,1727752242721,-12907.64513513,0.00011,2]
[339618926,1727752242921,-993.56644484,0.00011,2]
[339618927,1727752242932,-2608.5519028,0.00011,2]
[339618928,1727752242943,-438.44803951,0.00011,2]
[339618929,1727752245704,-254.450715,0.000109,2]
[339618930,1727752245714,-1216.0548441,0.00011,2]
[339618931,1727752245725,-458.71239164,0.00011,2]
[339618933,1727752245736,-662.40319411,0.00011,2]
[339618935,1727752245747,-167608.27364027,0.00011,2]
[339618936,1727752245757,-410107.39023657,0.00011,2]
[339618937,1727752245768,-3647.61318374,0.00011,2]
[339618938,1727752245779,-4737.96503898,0.00011,2]
[339618939,1727752245792,-10534.54477223,0.00011,2]
[339618940,1727752245803,-3893.8786,0.00011,2]
[339618941,1727752245813,-12460.6,0.00011,2]
[339618942,1727752245824,-583.67187628,0.00011,2]
[339618943,1727752245894,-6134.03908973,0.00011,2]
[339618944,1727752245905,-4038.52621349,0.00011,2]
[339618945,1727752245915,-1615.08851779,0.00011,2]
[339618948,1727752638744,-238.08,0.00010492,2]
[339618949,1727752680425,-211.53895662,0.000107,2]
[339618950,1727752712855,150.0,8.22e-05,2]
[339618951,1727752712877,150.0,8.22e-05,2]
[339618952,1727752712898,150.0,8.22e-05,2]
[339618953,1727752712919,50.0,8.22e-05,2]
[339618954,1727752713890,100.0,8.22e-05,2]
[339618955,1727752713912,236.61054338,8.22e-05,2]
[339618956,1727752713936,463.38945662,8.22e-05,2]
[339618957,1727752714433,500.0,9.59e-05,2]
[339618958,1727752715599,800.0,9.59e-05,2]
[339618959,1727752725898,150.0,8.22e-05,2]
[339618960,1727752725921,174.36895662,8.22e-05,2]
[339618961,1727752725941,1575.63104338,8.22e-05,2]
[339618962,1727752726413,3500.0,8.22e-05,2]
[339618963,1727752727479,1900.0,9.59e-05,2]
[339618964,1727752727953,3500.0,9.59e-05,2]
[339618965,1727752942943,238.08,8.307e-05,2]
[339618966,1727752942965,19.22,8.307e-05,2]
[339618967,1727752998223,130.78,8.241e-05,2]
[339618968,1727752998243,150.0,8.241e-05,2]
[339618969,1727752998263,150.0,8.241e-05,2]
[339618970,1727752998283,69.22,8.241e-05,2]
[339618971,1727753026929,-250.0,0.00010026,2]
[339618972,1727753104185,150.0,9.888e-05,2]
[339618973,1727753104530,150.0,9.938e-05,2]
[339618974,1727753104897,150.0,9.988e-05,2]
[339618975,1727753113905,150.0,9.888e-05,2]
[339618976,1727753115721,-150.0,0.00010037,2]
[339618977,1727753121212,150.0,9.888e-05,2]
[339618978,1727753124646,150.0,9.888e-05,2]
[339618979,1727753126190,-150.0,0.00010087,2]
[339618980,1727753126472,-150.0,0.00010107,2]
[339618981,1727753126891,-150.0,0.00010137,2]
[339618982,1727753127561,-150.0,0.00010187,2]
[339618983,1727753128064,-150.0,0.00010237,2]
[339618984,1727753217696,494.04,9.76e-05,2]
[339618985,1727753263028,65.15492646,9.783e-05,2]
[339618986,1727753263052,115.85507354,9.783e-05,2]
[339618988,1727753422285,1852.42,9.787e-05,2]
[339618997,1727753431864,-211.53895662,0.00010187,2]
[339618998,1727753431874,-250.0,0.00010284,2]
[339618999,1727753431884,-150.0,0.00010287,2]
[339619000,1727753431894,-150.0,0.00010327,2]
[339619001,1727753431904,-150.0,0.00010337,2]
[339619002,1727753431913,-150.0,0.00010387,2]
[339619003,1727753431923,-150.0,0.00010437,2]
[339619004,1727753431933,-150.0,0.00010437,2]
[339619005,1727753431943,-150.0,0.00010487,2]
[339619006,1727753431952,-150.0,0.00010537,2]
[339619007,1727753431962,-1161.35,0.00010537,2]
[339619008,1727753431972,-150.0,0.00010547,2]
[339619009,1727753431981,-865.84529068,0.00010547,2]
[339619010,1727753432093,-300.0,0.00010547,2]
[339619011,1727753432105,-93.57470932,0.00010547,2]
[339619012,1727753432114,-200.58413713,0.00010571,2]
[339619013,1727753432127,-56.71586287,0.00010571,2]
[339619014,1727753432136,-150.0,0.00010587,2]
[339619015,1727753432146,-256.45,0.00010606,2]
[339619016,1727753432155,-1000.0,0.00010609,2]
[339619017,1727753432165,-150.0,0.00010637,2]
[339619018,1727753432174,-197.09,0.00010642,2]
[339619020,1727753432184,-150.0,0.00010687,2]
[339619022,1727753432193,-760.87,0.000107,2]
[339619024,1727753432202,-566.97,0.000107,2]
[339619026,1727753432211,-263.09,0.000107,2]
[339619028,1727753432220,-860.74,0.000107,2]
[339619030,1727753432230,-150.72,0.000107,2]
[339619032,1727753432239,-303.84,0.000107,2]
[339619034,1727753432249,-303.27,0.000107,2]
[339619036,1727753432259,-692.56,0.000107,2]
[339619037,1727753432268,-150.0,0.00010716,2]
[339619039,1727753432277,-150.0,0.00010725,2]
[339619041,1727753432287,-1500.0,0.00010729,2]
[339619043,1727753432296,-1500.0,0.00010736,2]
[339619045,1727753432305,-150.0,0.00010737,2]
[339619047,1727753432315,-150.0,0.0001074,2]
[339619068,1727753432503,-150.0,0.0001074,2]
[339619070,1727753432512,-1500.0,0.00010742,2]
[339619072,1727753432523,-1500.0,0.00010748,2]
[339619074,1727753432532,-150.0,0.00010749,2]
[339619076,1727753432541,-1500.0,0.00010753,2]
[339619078,1727753432550,-1500.0,0.00010753,2]
[339619080,1727753432559,-150.0,0.00010756,2]
[339619082,1727753432568,-272.90148056,0.00010758,2]
[339619084,1727753432578,-150.0,0.00010767,2]
[339619086,1727753432587,-150.0,0.00010769,2]
[339619088,1727753432596,-150.0,0.0001077,2]
[339619090,1727753432605,-150.0,0.00010771,2]
[339619092,1727753432616,-150.0,0.00010779,2]
[339619094,1727753432626,-1500.0,0.00010779,2]
[339619096,1727753432635,-150.36044302,0.00010779,2]
[339619098,1727753432644,-1500.0,0.0001078,2]
[339619100,1727753432654,-150.0,0.00010783,2]
[339619102,1727753432663,-150.0,0.00010783,2]
[339619104,1727753432672,-150.0,0.00010784,2]
[339619106,1727753432681,-1500.0,0.00010786,2]
[339619108,1727753432690,-150.0,0.00010787,2]
[339619110,1727753432700,-8561.21905217,0.0001079,2]
[339619112,1727753432708,-150.0,0.00010791,2]
[339619114,1727753432718,-150.0,0.00010791,2]
[339619116,1727753432727,-150.0,0.00010792,2]
[339619118,1727753432736,-1500.0,0.00010793,2]
[339619120,1727753432745,-150.0,0.00010796,2]
[339619122,1727753432755,-214.92,0.00010798,2]
[339619124,1727753432764,-150.0,0.00010799,2]
[339619126,1727753432776,-705.8832,0.000108,2]
[339619128,1727753432785,-8150.5968,0.000108,2]
[339619130,1727753432794,-22851.2847,0.000108,2]
[339619132,1727753432803,-14240.1082,0.000108,2]
[339619134,1727753432812,-1489.0,0.000108,2]
[339619136,1727753432821,-753.8,0.000108,2]
[339619138,1727753432831,-423.0,0.000108,2]
[339619140,1727753432839,-150.0,0.00010801,2]
[339619142,1727753432849,-150.0,0.00010806,2]
[339619144,1727753432858,-436.93605288,0.00010808,2]
[339619146,1727753432867,-1500.0,0.00010809,2]
[339619148,1727753432877,-150.0,0.00010811,2]
[339619150,1727753432886,-150.0,0.00010812,2]
[339619151,1727753432896,-1500.0,0.00010816,2]
[339619152,1727753432905,-1500.0,0.00010817,2]
[339619153,1727753432914,-1500.0,0.00010818,2]
[339619154,1727753432923,-1500.0,0.00010822,2]
[339619155,1727753432933,-175.89263211,0.00010823,2]
[339619156,1727753432942,-1500.0,0.00010824,2]
[339619157,1727753432951,-1500.0,0.00010827,2]
[339619158,1727753432960,-150.0,0.00010835,2]
[339619159,1727753432970,-150.0,0.00010836,2]
[339619160,1727753432979,-150.0,0.00010836,2]
[339619161,1727753432988,-150.0,0.00010844,2]
[339619162,1727753432997,-150.0,0.00010844,2]
[339619163,1727753433006,-150.0,0.00010852,2]
[339619164,1727753433016,-150.0,0.00010853,2]
[339619165,1727753433036,-1500.0,0.00010853,2]
[339619166,1727753433050,-150.0,0.00010856,2]
[339619167,1727753433059,-1500.0,0.00010862,2]
[339619168,1727753433068,-150.0,0.00010868,2]
[339619170,1727753433078,-150.0,0.0001087,2]
[339619171,1727753433087,-150.0,0.00010872,2]
[339619173,1727753433096,-150.0,0.00010886,2]
[339619175,1727753433106,-1500.0,0.00010893,2]
[339619177,1727753433117,-1500.0,0.00010894,2]
[339619179,1727753433127,-150.0,0.00010896,2]
[339619181,1727753433136,-150.0,0.00010897,2]
[339619183,1727753433146,-7512.02330737,0.00010899,2]
[339619185,1727753433155,-1000.0,0.000109,2]
[339619187,1727753433164,-190670.4452,0.000109,2]
[339619188,1727753433174,-18067.5931,0.000109,2]
[339619190,1727753433183,-43635.1173,0.000109,2]
[339619192,1727753433192,-173.18979554,0.000109,2]
[339619194,1727753433201,-500.0,0.000109,2]
[339619196,1727753433211,-169.60509072,0.000109,2]
[339619198,1727753433221,-156.57092114,0.000109,2]
[339619200,1727753433231,-188.89782537,0.000109,2]
[339619202,1727753433240,-169.63381,0.000109,2]
[339619203,1727753433249,-1005.00833861,0.000109,2]
[339619204,1727753433259,-150.0,0.00010901,2]
[339619205,1727753433268,-150.0,0.00010903,2]
[339619206,1727753433278,-1500.0,0.00010908,2]
[339619207,1727753433287,-150.0,0.00010913,2]
[339619208,1727753433296,-1500.0,0.00010913,2]
[339619209,1727753433305,-150.0,0.00010914,2]
[339619210,1727753433315,-1500.0,0.00010916,2]
[339619211,1727753433324,-150.0,0.00010919,2]
[339619212,1727753433334,-150.0,0.00010921,2]
[339619213,1727753433344,-1500.0,0.00010925,2]
[339619214,1727753433354,-150.0,0.00010929,2]
[339619215,1727753433364,-150.0,0.00010933,2]
[339619216,1727753433374,-408.58224854,0.00010934,2]
[339619217,1727753433385,-150.0,0.00010936,2]
[339619218,1727753433394,-1500.0,0.00010943,2]
[339619219,1727753433404,-150.0,0.00010945,2]
[339619220,1727753433415,-1033.1694508,0.00010953,2]
[339619221,1727753433425,-150.0,0.00010953,2]
[339619222,1727753433435,-4267.81,0.00010959,2]
[339619223,1727753433445,-191.14,0.00010959,2]
[339619224,1727753433454,-150.0,0.00010959,2]
[339619225,1727753433464,-250.0,0.00010959,2]
[339619226,1727753433474,-500.0,0.0001096,2]
[339619227,1727753433484,-800.0,0.0001096,2]
[339619228,1727753433493,-1900.0,0.0001096,2]
[339619229,1727753433503,-3500.0,0.0001096,2]
[339619230,1727753433512,-150.0,0.00010962,2]
[339619231,1727753433526,-150.0,0.00010963,2]
[339619232,1727753433535,-642.18693665,0.00010973,2]
[339619233,1727753433545,-503.4288004,0.00010973,2]
[339619234,1727753433555,-500.0,0.00010973,2]
[339619235,1727753433564,-422.44759378,0.00010973,2]
[339619236,1727753433574,-500.0,0.00010973,2]
[339619237,1727753433584,-150.0,0.00010973,2]
[339619238,1727753433594,-150.0,0.00010979,2]
[339619239,1727753433604,-150.0,0.0001098,2]
[339619240,1727753433614,-150.0,0.00010984,2]
[339619241,1727753433623,-251.41224922,0.00010986,2]
[339619242,1727753433633,-157.90251296,0.00010986,2]
[339619243,1727753433642,-246.57706249,0.00010986,2]
[339619244,1727753433652,-443.40171701,0.00010987,2]
[339619245,1727753433664,-150.0,0.00010987,2]
[339619246,1727753433673,-152.33,0.0001099,2]
[339619247,1727753433685,-248.83381796,0.0001099,2]
[339619248,1727753433695,-151.25914871,0.00010998,2]
[339619249,1727753433704,-978.3100137,0.00010999,2]
[339619250,1727753433714,-1000.0,0.00010999,2]
[339619251,1727753433723,-1016.8073,0.00010999,2]
[339619252,1727753433733,-22177.92881668,0.00011,2]
[339619253,1727753433895,-479.16,0.00011,2]
[339619254,1727753433907,-27938.63822796,0.00011,2]
[339619255,1727753433918,-324.0102751,0.00011,2]
[339619256,1727753433930,-306987.0042849,0.00011,2]
[339619257,1727753433939,-138285.70917153,0.00011,2]
[339619258,1727753433951,-2670.841426,0.00011,2]
[339619259,1727753433963,-3641.40814063,0.00011,2]
[339619260,1727753434061,-654.03539845,0.00011,2]
[339619261,1727753434073,-735.55299553,0.00011,2]
[339619265,1727753437845,-150.0,0.00010736,2]
[339619266,1727753437854,-150.0,0.00010738,2]
[339619267,1727753437863,-150.0,0.00010749,2]
[339619268,1727753437872,-150.0,0.00010755,2]
[339619269,1727753437882,-150.0,0.00010769,2]
[339619270,1727753437891,-150.0,0.0001077,2]
[339619271,1727753437900,-150.0,0.00010775,2]
[339619272,1727753437909,-150.0,0.00010776,2]
[339619273,1727753437918,-150.0,0.00010784,2]
[339619274,1727753437927,-150.0,0.00010792,2]
[339619275,1727753437936,-150.0,0.00010798,2]
[339619276,1727753437945,-150.0,0.00010803,2]
[339619277,1727753437954,-116.29494,0.0001081,2]
[339619278,1727753437986,-33.70506,0.0001081,2]
[339619279,1727753437995,-150.0,0.00010816,2]
[339619280,1727753438004,-150.0,0.0001082,2]
[339619281,1727753438013,-150.0,0.00010861,2]
[339619282,1727753438023,-150.0,0.00010863,2]
[339619283,1727753438032,-150.0,0.00010898,2]
[339619284,1727753438041,-150.0,0.00010909,2]
[339619285,1727753438053,-150.0,0.00010916,2]
[339619286,1727753438063,-150.0,0.00010934,2]
[339619287,1727753438071,-150.0,0.00010951,2]
[339619288,1727753438080,-150.0,0.00010977,2]
[339619289,1727753438090,-61452.49868858,0.00011,2]
[339619291,1727753438302,-3725.18505877,0.00011,2]
[339619295,1727753438334,-117636.63788808,0.00011,2]
[339619297,1727753438343,-73980.25347383,0.00011,2]
[339619299,1727753438353,-33741.26908758,0.00011,2]
[339619316,1727753439852,-2830.02928545,0.00011,2]
[339619317,1727753439988,-1253.01199679,0.00011,2]
[339619318,1727753440127,-5067.44166413,0.00011,2]
[339619319,1727753440138,-3226.05,0.00011,2]
[339619320,1727753440149,-6398.71158988,0.00011,2]
[339619321,1727753440258,-331.37356652,0.00011,2]
[339619322,1727753443038,-2006.30460254,0.00011,2]
[339619323,1727753443054,-1383.95848256,0.00011,2]
[339619324,1727753443066,-697.04949415,0.00011,2]
[339619325,1727753443078,-79201.40350757,0.00011,2]
[339619326,1727753443090,-702.93151664,0.00011,2]
[339619327,1727753443103,-656.86101804,0.00011,2]
[339619328,1727753443388,-293.80853246,0.00011,2]
[339619330,1727753443400,-1728.53770147,0.00011,2]
[339619332,1727753443411,-378.703701,0.00011,2]
[339619333,1727753443423,-4143.31,0.00011,2]
[339619334,1727753443435,-443.4506406,0.00011,2]
[339619335,1727753443446,-445.03084536,0.00011,2]
[339619343,1727753445812,-526887.23804038,0.00011,2]
[339619346,1727753445825,-5120.18609068,0.00011,2]
[339619359,1727753445946,-12904.79999998,0.00011,2]
[339619373,1727753446082,-15198.06703155,0.00011,2]
[339619375,1727753446095,-35510.06290173,0.00011,2]
[339619379,1727753446219,-2659.11323787,0.00011,2]
[339619380,1727753446231,-4411.4206032,0.00011,2]
[339619381,1727753498092,150.0,8.22e-05,2]
[339619382,1727753498114,150.0,8.22e-05,2]
[339619383,1727753498134,150.0,8.22e-05,2]
[339619384,1727753498160,50.0,8.22e-05,2]
[339619385,1727753498760,100.0,8.22e-05,2]
[339619386,1727753498780,150.0,8.22e-05,2]
[339619387,1727753498801,150.0,8.22e-05,2]
[339619388,1727753498821,150.0,8.22e-05,2]
[339619389,1727753498841,50.0,8.22e-05,2]
[339619390,1727753500335,177.63251564,9.59e-05,2]
[339619391,1727753500359,422.36748436,9.59e-05,2]
[339619392,1727753508057,1500.0,8.22e-05,2]
[339619393,1727753508907,2600.0,8.22e-05,2]
[339619394,1727753509613,1500.0,9.59e-05,2]
[339619395,1727753510885,2600.0,9.59e-05,2]
[339619401,1727753702769,249.89,8.219e-05,2]
[339619404,1727753768787,19.33,9.998e-05,2]
[339619405,1727753768811,261.56,9.998e-05,2]
[339619406,1727753805404,204.19,9.998e-05,2]
[339619407,1727753826391,247.02,9.999e-05,2]
[339619408,1727753866766,176.9,9.983e-05,2]
[339619409,1727754054789,150.0,9.97e-05,2]
[339619410,1727754054809,100.0,9.97e-05,2]
[339619411,1727754114570,72.62,9.834e-05,2]
[339619412,1727754114596,177.38,9.834e-05,2]
[339619413,1727754189664,72.62,9.835e-05,2]
[339619414,1727754189685,150.0,9.835e-05,2]
[339619415,1727754189705,277.57,9.835e-05,2]
[339619416,1727754189729,549.81,9.835e-05,2]
[339619417,1727754192539,1000.0,9.837e-05,2]
[339619418,1727754212471,213.78,9.837e-05,2]
[339619419,1727754212675,213.78,9.886e-05,2]
[339619420,1727754243595,249.89,8.219e-05,2]
[339619421,1727754287815,244.03,9.835e-05,2]
[339619422,1727754304662,150.0,9.888e-05,2]
[339619423,1727754344257,153.97,9.836e-05,2]
[339619424,1727754344284,62.49,9.836e-05,2]
[339619425,1727754404469,247.02,9.834e-05,2]
[339619439,1727754631899,-249.89,0.00010467,2]
[339619440,1727754631909,-1000.0,0.000107,2]
[339619441,1727754631919,-150.0,0.00010727,2]
[339619442,1727754631928,-150.0,0.0001073,2]
[339619443,1727754631938,-150.0,0.00010739,2]
[339619444,1727754631947,-1175.53603347,0.00010742,2]
[339619445,1727754631958,-150.0,0.00010742,2]
[339619446,1727754631967,-150.0,0.00010744,2]
[339619447,1727754631977,-150.0,0.00010746,2]
[339619448,1727754631988,-11.4556087,0.00010755,2]
[339619449,1727754631999,-138.5443913,0.00010755,2]
[339619450,1727754632008,-156.39307044,0.00010755,2]
[339619451,1727754632017,-150.0,0.00010759,2]
[339619452,1727754632027,-499.99,0.00010759,2]
[339619453,1727754632036,-462.66,0.00010759,2]
[339619454,1727754632046,-150.0,0.0001076,2]
[339619455,1727754632055,-150.0,0.00010764,2]
[339619456,1727754632064,-150.0,0.00010765,2]
[339619457,1727754632073,-150.0,0.00010768,2]
[339619458,1727754632083,-150.0,0.00010772,2]
[339619459,1727754632092,-150.0,0.00010776,2]
[339619460,1727754632101,-150.0,0.00010778,2]
[339619461,1727754632111,-150.0,0.00010781,2]
[339619462,1727754632121,-150.0,0.00010781,2]
[339619463,1727754632130,-150.0,0.00010783,2]
[339619464,1727754632139,-150.0,0.00010784,2]
[339619465,1727754632148,-150.0,0.00010784,2]
[339619466,1727754632157,-150.0,0.00010785,2]
[339619467,1727754632166,-150.0,0.00010791,2]
[339619468,1727754632175,-150.0,0.00010799,2]
[339619469,1727754632184,-300.0,0.00010799,2]
[339619470,1727754632194,-300.0,0.00010799,2]
[339619471,1727754632203,-358.7008,0.000108,2]
[339619472,1727754632215,-1077.69639426,0.000108,2]
[339619473,1727754632236,-4223.30804722,0.000108,2]
[339619474,1727754632248,-899.999998,0.000108,2]
[339619475,1727754632259,-255.5570155,0.000108,2]
[339619476,1727754632270,-5613.23734502,0.000108,2]
[339619477,1727754632280,-2002.8435,0.000108,2]
[339619479,1727754632289,-150.0,0.00010801,2]
[339619480,1727754632299,-150.0,0.00010804,2]
[339619482,1727754632308,-150.0,0.00010804,2]
[339619484,1727754632317,-150.0,0.00010805,2]
[339619485,1727754632326,-258.41772519,0.00010808,2]
[339619486,1727754632335,-150.0,0.00010815,2]
[339619488,1727754632344,-150.0,0.00010816,2]
[339619489,1727754632353,-150.0,0.00010816,2]
[339619490,1727754632364,-150.0,0.00010816,2]
[339619491,1727754632373,-282.83613108,0.00010821,2]
[339619492,1727754632383,-150.0,0.00010825,2]
[339619493,1727754632392,-150.0,0.00010827,2]
[339619494,1727754632401,-150.0,0.00010828,2]
[339619495,1727754632411,-150.0,0.0001083,2]
[339619496,1727754632420,-150.0,0.0001083,2]
[339619497,1727754632430,-150.0,0.00010831,2]
[339619498,1727754632439,-150.0,0.00010836,2]
[339619499,1727754632448,-150.0,0.00010837,2]
[339619500,1727754632458,-150.0,0.00010837,2]
[339619501,1727754632467,-150.0,0.00010837,2]
[339619502,1727754632476,-150.0,0.00010838,2]
[339619503,1727754632491,-150.0,0.0001084,2]
[339619504,1727754632500,-150.0,0.00010845,2]
[339619505,1727754632510,-150.0,0.00010846,2]
[339619506,1727754632519,-150.0,0.0001085,2]
[339619507,1727754632529,-150.0,0.00010854,2]
[339619508,1727754632538,-150.0,0.00010855,2]
[339619509,1727754632548,-150.0,0.00010855,2]
[339619510,1727754632557,-150.0,0.00010859,2]
[339619511,1727754632566,-150.0,0.0001086,2]
[339619512,1727754632576,-150.0,0.00010862,2]
[339619513,1727754632586,-150.0,0.00010863,2]
[339619514,1727754632596,-150.0,0.00010864,2]
[339619515,1727754632605,-150.0,0.00010864,2]
[339619516,1727754632614,-150.0,0.00010871,2]
[339619517,1727754632624,-150.0,0.00010872,2]
[339619518,1727754632634,-150.0,0.00010878,2]
[339619519,1727754632644,-150.0,0.00010881,2]
[339619520,1727754632653,-150.0,0.00010881,2]
[339619521,1727754632662,-150.0,0.00010882,2]
[339619522,1727754632674,-150.0,0.00010884,2]
[339619523,1727754632683,-150.0,0.00010884,2]
[339619524,1727754632692,-150.0,0.00010886,2]
[339619525,1727754632701,-150.0,0.00010886,2]
[339619526,1727754632710,-150.0,0.00010888,2]
[339619527,1727754632719,-150.0,0.0001089,2]
[339619528,1727754632729,-150.0,0.00010893,2]
[339619529,1727754632740,-150.0,0.00010894,2]
[339619530,1727754632750,-150.0,0.00010895,2]
[339619531,1727754632761,-150.0,0.00010896,2]
[339619532,1727754632773,-150.0,0.00010899,2]
[339619533,1727754632782,-8052.09718484,0.00010899,2]
[339619534,1727754632791,-8373.296,0.000109,2]
[339619535,1727754632800,-10015.504,0.000109,2]
[339619536,1727754632809,-87418.8575,0.000109,2]
[339619537,1727754632818,-173.18979554,0.000109,2]
[339619538,1727754632827,-345.5009,0.000109,2]
[339619539,1727754632836,-45382.8903,0.000109,2]
[339619540,1727754632845,-2076.3613,0.000109,2]
[339619541,1727754632855,-157.36847044,0.000109,2]
[339619542,1727754632863,-376.73,0.000109,2]
[339619543,1727754632872,-167.78396599,0.000109,2]
[339619544,1727754632881,-1000.0,0.000109,2]
[339619545,1727754632891,-663.48896923,0.000109,2]
[339619546,1727754632900,-670.00555908,0.000109,2]
[339619547,1727754632911,-150.0,0.00010901,2]
[339619548,1727754632921,-150.0,0.00010906,2]
[339619549,1727754632930,-150.0,0.00010906,2]
[339619550,1727754632940,-150.0,0.00010908,2]
[339619551,1727754632950,-150.0,0.00010908,2]
[339619552,1727754632959,-500.0,0.00010912,2]
[339619553,1727754632969,-150.0,0.00010915,2]
[339619554,1727754632980,-150.0,0.00010917,2]
[339619555,1727754632990,-174.40565776,0.00010922,2]
[339619556,1727754632999,-150.0,0.00010923,2]
[339619557,1727754633009,-150.0,0.00010929,2]
[339619558,1727754633019,-150.0,0.0001093,2]
[339619559,1727754633029,-150.0,0.00010932,2]
[339619560,1727754633039,-150.0,0.00010933,2]
[339619561,1727754633050,-150.0,0.00010934,2]
[339619562,1727754633060,-150.0,0.00010938,2]
[339619563,1727754633070,-150.0,0.00010939,2]
[339619564,1727754633079,-150.0,0.0001094,2]
[339619565,1727754633089,-500.0,0.00010945,2]
[339619566,1727754633098,-500.0,0.00010945,2]
[339619567,1727754633107,-500.0,0.00010945,2]
[339619568,1727754633117,-500.0,0.00010945,2]
[339619569,1727754633126,-500.0,0.00010945,2]
[339619570,1727754633136,-395.8579,0.00010945,2]
[339619571,1727754633146,-150.0,0.00010947,2]
[339619572,1727754633156,-150.0,0.00010949,2]
[339619573,1727754633167,-150.0,0.00010956,2]
[339619574,1727754633177,-150.0,0.00010957,2]
[339619575,1727754633186,-150.0,0.00010957,2]
[339619576,1727754633195,-158.85,0.00010959,2]
[339619577,1727754633205,-250.0,0.00010959,2]
[339619578,1727754633214,-171.74,0.00010959,2]
[339619579,1727754633224,-150.0,0.00010959,2]
[339619580,1727754633233,-500.0,0.0001096,2]
[339619581,1727754633244,-1500.0,0.0001096,2]
[339619582,1727754633253,-600.0,0.0001096,2]
[339619583,1727754633264,-1500.0,0.0001096,2]
[339619584,1727754633274,-2600.0,0.0001096,2]
[339619585,1727754633284,-150.0,0.00010961,2]
[339619586,1727754633294,-150.0,0.00010968,2]
[339619587,1727754633303,-150.0,0.00010971,2]
[339619588,1727754633312,-150.0,0.00010972,2]
[339619589,1727754633322,-296.67786927,0.00010973,2]
[339619590,1727754633331,-500.0,0.00010973,2]
[339619591,1727754633341,-500.0,0.00010973,2]
[339619592,1727754633351,-500.0,0.00010973,2]
[339619593,1727754633360,-201.01668008,0.00010973,2]
[339619594,1727754633370,-500.0,0.00010973,2]
[339619595,1727754633380,-150.0,0.00010974,2]
[339619596,1727754633389,-150.0,0.00010984,2]
[339619597,1727754633399,-150.0,0.00010986,2]
[339619598,1727754633410,-150.0,0.00010988,2]
[339619599,1727754633419,-153.64,0.0001099,2]
[339619600,1727754633429,-150.0,0.0001099,2]
[339619601,1727754633439,-153.64,0.0001099,2]
[339619602,1727754633448,-153.64,0.0001099,2]
[339619603,1727754633458,-153.64,0.0001099,2]
[339619604,1727754633468,-153.64,0.0001099,2]